[Event "Titled Tuesday Blitz August 17 2021"]
[White "Molina, Roberto Junio Brito"]
[Black "Fernandez Hernandez, Arturo A."]
[WhiteFideId "2109450"]
[BlackFideId "3509230"]
[WhiteElo "2402"]
[BlackElo "2400"]
[Result "1/2-1/2"]
[Round "06"]
[TimeControl "180+1"]
[Date "2021.08.17"]
[WhiteClock "0:00:52"]
[BlackClock "0:00:37"]

1. d4 {[%clk 0:03:00]}  Nf6 {[%clk 0:02:59]} 2. c4 {[%clk 0:02:58]}  c5 {[%clk 0:02:58]} 3. d5 {[%clk 0:02:58]}  e6 {[%clk 0:02:59]} 4. Nc3 {[%clk 0:02:57]}  exd5 {[%clk 0:03:00]} 5. cxd5 {[%clk 0:02:57]}  d6 {[%clk 0:03:00]} 6. e4 {[%clk 0:02:55]}  g6 {[%clk 0:03:01]} 7. h3 {[%clk 0:02:55]}  Bg7 {[%clk 0:03:01]} 8. Nf3 {[%clk 0:02:55]}  O-O {[%clk 0:03:01]} 9. Bd3 {[%clk 0:02:56]}  b5 {[%clk 0:03:02]} 10. Bxb5 {[%clk 0:02:56]}  Nxe4 {[%clk 0:03:01]} 11. Nxe4 {[%clk 0:02:57]}  Qa5+ {[%clk 0:03:01]} 12. Nfd2 {[%clk 0:02:58]}  Qxb5 {[%clk 0:03:01]} 13. Nxd6 {[%clk 0:02:58]}  Qa6 {[%clk 0:03:02]} 14. N2c4 {[%clk 0:02:58]}  Nd7 {[%clk 0:03:02]} 15. O-O {[%clk 0:02:58]}  Ne5 {[%clk 0:03:03]} 16. Nxc8 {[%clk 0:02:56]}  Raxc8 {[%clk 0:03:00]} 17. Nxe5 {[%clk 0:02:54]}  Bxe5 {[%clk 0:03:01]} 18. Re1 {[%clk 0:02:46]}  Qf6 {[%clk 0:02:59]} 19. Rb1 {[%clk 0:02:35]}  Rfd8 {[%clk 0:02:55]} 20. b3 {[%clk 0:02:27]}  Bd4 {[%clk 0:02:53]} 21. Be3 {[%clk 0:02:27]}  Rxd5 {[%clk 0:02:52]} 22. Bxd4 {[%clk 0:02:27]}  cxd4 {[%clk 0:02:50]} 23. Rc1 {[%clk 0:02:23]}  Rxc1 {[%clk 0:02:48]} 24. Qxc1 {[%clk 0:02:24]}  d3 {[%clk 0:02:48]} 25. Rd1 {[%clk 0:01:50]}  a5 {[%clk 0:02:36]} 26. Qc4 {[%clk 0:01:37]}  Qd6 {[%clk 0:02:13]} 27. Rd2 {[%clk 0:01:32]}  h5 {[%clk 0:02:09]} 28. g3 {[%clk 0:01:31]}  Kh7 {[%clk 0:02:06]} 29. h4 {[%clk 0:01:29]}  Kg7 {[%clk 0:02:00]} 30. Qc3+ {[%clk 0:01:24]}  Kg8 {[%clk 0:01:54]} 31. Qc8+ {[%clk 0:01:21]}  Kh7 {[%clk 0:01:53]} 32. Qc4 {[%clk 0:01:20]}  Qd7 {[%clk 0:01:50]} 33. Qe4 {[%clk 0:01:17]}  Rd4 {[%clk 0:01:48]} 34. Qe3 {[%clk 0:01:16]}  Qd5 {[%clk 0:01:41]} 35. f3 {[%clk 0:01:16]}  Qd6 {[%clk 0:01:35]} 36. Kf2 {[%clk 0:01:16]}  Kg7 {[%clk 0:01:28]} 37. Qg5 {[%clk 0:01:09]}  Rd5 {[%clk 0:01:16]} 38. Qe3 {[%clk 0:01:06]}  Qd7 {[%clk 0:01:08]} 39. Qe4 {[%clk 0:01:04]}  Qd6 {[%clk 0:00:56]} 40. Qe3 {[%clk 0:01:01]}  Kh7 {[%clk 0:00:54]} 41. Kg2 {[%clk 0:00:59]}  Qd7 {[%clk 0:00:49]} 42. Qe4 {[%clk 0:00:57]}  Rd4 {[%clk 0:00:47]} 43. Qe3 {[%clk 0:00:58]}  Qd6 {[%clk 0:00:37]} 44. Kf2 {[%clk 0:00:57]}  Rd5 {[%clk 0:00:37]} 45. Kg2 {[%clk 0:00:54]}  Qd7 {[%clk 0:00:37]} 46. Qe4 {[%clk 0:00:52]}  Rd4 {[%clk 0:00:37]} 47. Qe3 {[%clk 0:00:52]}  Rd5 {[%clk 0:00:37]} 1/2-1/2


[Site "https://www.chess.com"]

[Event "Titled Tuesday Blitz August 17 2021"]
[White "Moreira, Ronaldo Alonso"]
[Black "Zhuravleva, Olga"]
[WhiteFideId "2110547"]
[BlackFideId "4145933"]
[WhiteElo "2037"]
[BlackElo "2119"]
[Result "0-1"]
[Round "06"]
[TimeControl "180+1"]
[Date "2021.08.18"]
[WhiteClock "0:00:03"]
[BlackClock "0:00:18"]

1. d4 {[%clk 0:03:00]}  Nf6 {[%clk 0:02:54]} 2. c4 {[%clk 0:03:00]}  e6 {[%clk 0:02:55]} 3. Nc3 {[%clk 0:03:00]}  Bb4 {[%clk 0:02:54]} 4. Bd2 {[%clk 0:03:00]}  O-O {[%clk 0:02:53]} 5. e3 {[%clk 0:02:59]}  b6 {[%clk 0:02:53]} 6. Nf3 {[%clk 0:02:55]}  Ba6 {[%clk 0:02:51]} 7. Be2 {[%clk 0:02:43]}  d5 {[%clk 0:02:49]} 8. cxd5 {[%clk 0:02:43]}  Bxe2 {[%clk 0:02:47]} 9. Nxe2 {[%clk 0:02:32]}  Bxd2+ {[%clk 0:02:46]} 10. Qxd2 {[%clk 0:02:32]}  exd5 {[%clk 0:02:46]} 11. O-O {[%clk 0:02:29]}  Nbd7 {[%clk 0:02:45]} 12. Rac1 {[%clk 0:02:24]}  c5 {[%clk 0:02:42]} 13. dxc5 {[%clk 0:02:15]}  bxc5 {[%clk 0:02:43]} 14. Nf4 {[%clk 0:02:05]}  Nb6 {[%clk 0:02:29]} 15. Rxc5 {[%clk 0:02:00]}  Ne4 {[%clk 0:02:28]} 16. Qc2 {[%clk 0:01:50]}  Nxc5 {[%clk 0:02:24]} 17. Qxc5 {[%clk 0:01:50]}  Rc8 {[%clk 0:02:24]} 18. Qd4 {[%clk 0:01:50]}  Rc4 {[%clk 0:02:22]} 19. Qd3 {[%clk 0:01:47]}  h6 {[%clk 0:02:15]} 20. Rd1 {[%clk 0:01:40]}  Qd6 {[%clk 0:02:05]} 21. h3 {[%clk 0:01:33]}  Rd8 {[%clk 0:02:02]} 22. Nd4 {[%clk 0:01:21]}  Qc5 {[%clk 0:01:53]} 23. Nf5 {[%clk 0:01:13]}  Rc1 {[%clk 0:01:47]} 24. Nh5 {[%clk 0:00:55]}  Rxd1+ {[%clk 0:01:42]} 25. Qxd1 {[%clk 0:00:56]}  Qc4 {[%clk 0:01:15]} 26. b3 {[%clk 0:00:43]}  Qe4 {[%clk 0:01:10]} 27. Nxh6+ {[%clk 0:00:38]}  Kf8 {[%clk 0:01:05]} 28. Ng4 {[%clk 0:00:27]}  d4 {[%clk 0:01:02]} 29. f3 {[%clk 0:00:26]}  Qf5 {[%clk 0:00:54]} 30. Ng3 {[%clk 0:00:25]}  Qd5 {[%clk 0:00:46]} 31. e4 {[%clk 0:00:24]}  Qc5 {[%clk 0:00:44]} 32. Qd2 {[%clk 0:00:22]}  d3+ {[%clk 0:00:41]} 33. Kh2 {[%clk 0:00:22]}  Nc8 {[%clk 0:00:34]} 34. Nf5 {[%clk 0:00:18]}  Ne7 {[%clk 0:00:34]} 35. Nfe3 {[%clk 0:00:11]}  Ng6 {[%clk 0:00:31]} 36. Nd5 {[%clk 0:00:10]}  Qc2 {[%clk 0:00:31]} 37. Qg5 {[%clk 0:00:06]}  Re8 {[%clk 0:00:25]} 38. h4 {[%clk 0:00:04]}  d2 {[%clk 0:00:23]} 39. Nge3 {[%clk 0:00:03]}  d1=Q {[%clk 0:00:19]} 40. Nxc2 {[%clk 0:00:02]}  Qxc2 {[%clk 0:00:20]} 41. h5 {[%clk 0:00:03]}  Ne5 {[%clk 0:00:18]} 42. h6 {[%clk 0:00:02]}  Nxf3+ {[%clk 0:00:17]} 43. Kg3 {[%clk 0:00:02]}  Nxg5 {[%clk 0:00:17]} 44. h7 {[%clk 0:00:03]}  Nxh7 {[%clk 0:00:18]} 0-1


[Site "https://www.chess.com"]

[Event "Titled Tuesday Blitz August 17 2021"]
[White "Nakamura, Hikaru"]
[Black "AlexOstrovskiy"]
[WhiteFideId "2016192"]
[WhiteElo "2900"]
[BlackElo "2848"]
[Result "1-0"]
[Round "06"]
[TimeControl "180+1"]
[Date "2021.08.17"]
[WhiteClock "0:01:51"]
[BlackClock "0:00:17"]

1. Nf3 {[%clk 0:03:00]}  d5 {[%clk 0:02:58]} 2. e3 {[%clk 0:03:01]}  Nf6 {[%clk 0:02:58]} 3. c4 {[%clk 0:03:01]}  e6 {[%clk 0:02:59]} 4. Nc3 {[%clk 0:03:01]}  a6 {[%clk 0:02:58]} 5. cxd5 {[%clk 0:03:00]}  exd5 {[%clk 0:02:58]} 6. d4 {[%clk 0:03:00]}  Bd6 {[%clk 0:02:57]} 7. Bd3 {[%clk 0:03:00]}  O-O {[%clk 0:02:57]} 8. Ne5 {[%clk 0:03:01]}  b6 {[%clk 0:02:54]} 9. O-O {[%clk 0:02:59]}  Bb7 {[%clk 0:02:54]} 10. Bd2 {[%clk 0:02:59]}  Re8 {[%clk 0:02:48]} 11. f4 {[%clk 0:02:59]}  Nbd7 {[%clk 0:02:48]} 12. Be1 {[%clk 0:02:58]}  c5 {[%clk 0:02:43]} 13. Bh4 {[%clk 0:02:55]}  b5 {[%clk 0:02:32]} 14. Nxd7 {[%clk 0:02:51]}  Qxd7 {[%clk 0:02:33]} 15. Bxf6 {[%clk 0:02:51]}  gxf6 {[%clk 0:02:34]} 16. Qh5 {[%clk 0:02:51]}  Re4 {[%clk 0:01:46]} 17. Bxe4 {[%clk 0:02:47]}  dxe4 {[%clk 0:01:47]} 18. dxc5 {[%clk 0:02:39]}  Bf8 {[%clk 0:01:46]} 19. Rad1 {[%clk 0:02:37]}  Qe6 {[%clk 0:01:29]} 20. b4 {[%clk 0:02:28]}  f5 {[%clk 0:01:23]} 21. Qg5+ {[%clk 0:02:26]}  Kh8 {[%clk 0:01:21]} 22. Ne2 {[%clk 0:02:17]}  Be7 {[%clk 0:01:17]} 23. Qh5 {[%clk 0:02:15]}  Rg8 {[%clk 0:00:57]} 24. Nd4 {[%clk 0:02:08]}  Qxa2 {[%clk 0:00:56]} 25. Rf2 {[%clk 0:02:05]}  Qa3 {[%clk 0:00:49]} 26. Nxf5 {[%clk 0:01:59]}  Bf8 {[%clk 0:00:17]} 27. Qxf7 {[%clk 0:01:51]} 1-0


[Site "https://www.chess.com"]

[Event "Titled Tuesday Blitz August 17 2021"]
[White "Nazaretyan, Tigran"]
[Black "Shafigullina, Zarina"]
[WhiteFideId "24162345"]
[BlackFideId "24174220"]
[WhiteElo "2167"]
[BlackElo "2087"]
[Result "1/2-1/2"]
[Round "06"]
[TimeControl "180+1"]
[Date "2021.08.18"]
[WhiteClock "0:00:21"]
[BlackClock "0:00:05"]

1. d4 {[%clk 0:03:00]}  Nf6 {[%clk 0:02:54]} 2. c4 {[%clk 0:03:00]}  e6 {[%clk 0:02:53]} 3. Nf3 {[%clk 0:03:00]}  b6 {[%clk 0:02:53]} 4. a3 {[%clk 0:02:59]}  Bb7 {[%clk 0:02:48]} 5. Nc3 {[%clk 0:02:59]}  d5 {[%clk 0:02:42]} 6. cxd5 {[%clk 0:02:58]}  Nxd5 {[%clk 0:02:41]} 7. e3 {[%clk 0:02:58]}  Be7 {[%clk 0:02:39]} 8. Bb5+ {[%clk 0:02:57]}  Nd7 {[%clk 0:02:38]} 9. Nxd5 {[%clk 0:02:56]}  Bxd5 {[%clk 0:02:27]} 10. Ne5 {[%clk 0:02:54]}  c6 {[%clk 0:02:27]} 11. Bxc6 {[%clk 0:02:41]}  Bxc6 {[%clk 0:02:26]} 12. Nxc6 {[%clk 0:02:42]}  Qc7 {[%clk 0:02:26]} 13. Nxe7 {[%clk 0:02:36]}  Kxe7 {[%clk 0:02:26]} 14. O-O {[%clk 0:02:36]}  Rac8 {[%clk 0:02:26]} 15. e4 {[%clk 0:02:35]}  Qc2 {[%clk 0:02:25]} 16. Qf3 {[%clk 0:02:33]}  Nf6 {[%clk 0:02:25]} 17. Bg5 {[%clk 0:02:32]}  h6 {[%clk 0:02:24]} 18. Bxf6+ {[%clk 0:02:29]}  gxf6 {[%clk 0:02:24]} 19. e5 {[%clk 0:02:22]}  f5 {[%clk 0:02:08]} 20. b4 {[%clk 0:02:14]}  Rhd8 {[%clk 0:02:02]} 21. Rad1 {[%clk 0:02:08]}  Rc3 {[%clk 0:01:59]} 22. Qh5 {[%clk 0:02:04]}  Rxa3 {[%clk 0:01:27]} 23. Rc1 {[%clk 0:02:02]}  Qe4 {[%clk 0:01:23]} 24. Qxh6 {[%clk 0:01:54]}  Qb7 {[%clk 0:01:08]} 25. Qh4+ {[%clk 0:01:44]}  Ke8 {[%clk 0:01:07]} 26. Rc4 {[%clk 0:01:12]}  b5 {[%clk 0:00:57]} 27. Rc5 {[%clk 0:01:03]}  Rd3 {[%clk 0:00:56]} 28. Qh8+ {[%clk 0:00:55]}  Ke7 {[%clk 0:00:55]} 29. Qf6+ {[%clk 0:00:55]}  Ke8 {[%clk 0:00:55]} 30. h4 {[%clk 0:00:50]}  R3xd4 {[%clk 0:00:44]} 31. h5 {[%clk 0:00:50]}  Rxb4 {[%clk 0:00:37]} 32. h6 {[%clk 0:00:49]}  Qe7 {[%clk 0:00:19]} 33. Qxe7+ {[%clk 0:00:23]}  Kxe7 {[%clk 0:00:18]} 34. Rc7+ {[%clk 0:00:24]}  Kf8 {[%clk 0:00:18]} 35. Rxa7 {[%clk 0:00:22]}  Re4 {[%clk 0:00:17]} 36. f4 {[%clk 0:00:20]}  b4 {[%clk 0:00:16]} 37. Rf3 {[%clk 0:00:19]}  Kg8 {[%clk 0:00:11]} 38. Rh3 {[%clk 0:00:18]}  Rf8 {[%clk 0:00:08]} 39. h7+ {[%clk 0:00:19]}  Kh8 {[%clk 0:00:08]} 40. g3 {[%clk 0:00:18]}  b3 {[%clk 0:00:07]} 41. Rb7 {[%clk 0:00:19]}  Re3 {[%clk 0:00:07]} 42. Kf2 {[%clk 0:00:18]}  Rc3 {[%clk 0:00:06]} 43. Rh1 {[%clk 0:00:18]}  Rc2+ {[%clk 0:00:05]} 44. Kf3 {[%clk 0:00:18]}  b2 {[%clk 0:00:05]} 45. Rb1 {[%clk 0:00:18]}  Rc3+ {[%clk 0:00:05]} 46. Kg2 {[%clk 0:00:18]}  Rc2+ {[%clk 0:00:05]} 47. Kh3 {[%clk 0:00:18]}  Kxh7 {[%clk 0:00:06]} 48. R1xb2 {[%clk 0:00:18]}  Rc3 {[%clk 0:00:05]} 49. R2b3 {[%clk 0:00:18]}  Rc1 {[%clk 0:00:05]} 50. Kh4 {[%clk 0:00:19]}  Kg6 {[%clk 0:00:05]} 51. Kh3 {[%clk 0:00:18]}  Rc2 {[%clk 0:00:02]} 52. g4 {[%clk 0:00:17]}  Rh8+ {[%clk 0:00:02]} 53. Kg3 {[%clk 0:00:17]}  fxg4 {[%clk 0:00:02]} 54. Kxg4 {[%clk 0:00:17]}  Rg2+ {[%clk 0:00:02]} 55. Rg3 {[%clk 0:00:17]}  Rxg3+ {[%clk 0:00:02]} 56. Kxg3 {[%clk 0:00:18]}  Rh1 {[%clk 0:00:02]} 57. Kf3 {[%clk 0:00:17]}  Rh5 {[%clk 0:00:02]} 58. Kg4 {[%clk 0:00:18]}  Rh1 {[%clk 0:00:02]} 59. Rb8 {[%clk 0:00:18]}  Rg1+ {[%clk 0:00:02]} 60. Kf3 {[%clk 0:00:19]}  Rf1+ {[%clk 0:00:03]} 61. Ke3 {[%clk 0:00:19]}  Rc1 {[%clk 0:00:03]} 62. Rg8+ {[%clk 0:00:18]}  Kh7 {[%clk 0:00:04]} 63. Rf8 {[%clk 0:00:18]}  Kg7 {[%clk 0:00:04]} 64. Rb8 {[%clk 0:00:18]}  Re1+ {[%clk 0:00:04]} 65. Kf3 {[%clk 0:00:19]}  Rf1+ {[%clk 0:00:04]} 66. Kg3 {[%clk 0:00:19]}  Rg1+ {[%clk 0:00:04]} 67. Kf2 {[%clk 0:00:20]}  Rh1 {[%clk 0:00:04]} 68. Rb7 {[%clk 0:00:20]}  Rh2+ {[%clk 0:00:04]} 69. Kg3 {[%clk 0:00:20]}  Rh6 {[%clk 0:00:04]} 70. Kg4 {[%clk 0:00:19]}  Rg6+ {[%clk 0:00:04]} 71. Kf3 {[%clk 0:00:20]}  Rh6 {[%clk 0:00:05]} 72. Rb6 {[%clk 0:00:19]}  Rg6 {[%clk 0:00:05]} 73. Rb2 {[%clk 0:00:19]}  Rh6 {[%clk 0:00:05]} 74. Rg2+ {[%clk 0:00:20]}  Kf8 {[%clk 0:00:06]} 75. Ke4 {[%clk 0:00:19]}  Ke7 {[%clk 0:00:06]} 76. Ra2 {[%clk 0:00:19]}  Rh4 {[%clk 0:00:06]} 77. Ra7+ {[%clk 0:00:19]}  Kf8 {[%clk 0:00:06]} 78. Kf3 {[%clk 0:00:20]}  Rh3+ {[%clk 0:00:06]} 79. Kg4 {[%clk 0:00:20]}  Rh6 {[%clk 0:00:06]} 80. Kg5 {[%clk 0:00:20]}  Rg6+ {[%clk 0:00:06]} 81. Kh5 {[%clk 0:00:21]}  Kg7 {[%clk 0:00:07]} 82. Ra3 {[%clk 0:00:19]}  Rh6+ {[%clk 0:00:07]} 83. Kg5 {[%clk 0:00:19]}  Rg6+ {[%clk 0:00:07]} 84. Kh4 {[%clk 0:00:20]}  Rh6+ {[%clk 0:00:07]} 85. Kg4 {[%clk 0:00:20]}  Rg6+ {[%clk 0:00:08]} 86. Kf3 {[%clk 0:00:21]}  Rh6 {[%clk 0:00:07]} 87. Ke4 {[%clk 0:00:22]}  Rh4 {[%clk 0:00:07]} 88. Rg3+ {[%clk 0:00:21]}  Kf8 {[%clk 0:00:07]} 89. Kf3 {[%clk 0:00:20]}  Rh2 {[%clk 0:00:07]} 90. Kg4 {[%clk 0:00:20]}  Rh6 {[%clk 0:00:06]} 91. Kg5 {[%clk 0:00:19]}  Rg6+ {[%clk 0:00:06]} 92. Kh4 {[%clk 0:00:20]}  Rh6+ {[%clk 0:00:06]} 93. Kg4 {[%clk 0:00:20]}  Rg6+ {[%clk 0:00:07]} 94. Kf3 {[%clk 0:00:21]}  Rh6 {[%clk 0:00:07]} 95. f5 {[%clk 0:00:20]}  exf5 {[%clk 0:00:07]} 96. Kf4 {[%clk 0:00:21]}  Ke7 {[%clk 0:00:04]} 97. Kxf5 {[%clk 0:00:20]}  Rh5+ {[%clk 0:00:05]} 98. Rg5 {[%clk 0:00:19]}  Rxg5+ {[%clk 0:00:04]} 99. Kxg5 {[%clk 0:00:20]}  Ke6 {[%clk 0:00:04]} 100. Kf4 {[%clk 0:00:20]}  f6 {[%clk 0:00:05]} 101. exf6 {[%clk 0:00:21]}  Kxf6 {[%clk 0:00:05]} 1/2-1/2


[Site "https://www.chess.com"]

[Event "Titled Tuesday Blitz August 17 2021"]
[White "Nguyen Hong Nhung"]
[Black "Mirzanurov, Bulat"]
[WhiteFideId "12412201"]
[BlackFideId "4184521"]
[WhiteElo "1661"]
[BlackElo "2208"]
[Result "0-1"]
[Round "06"]
[TimeControl "180+1"]
[Date "2021.08.18"]
[WhiteClock "0:00:10"]
[BlackClock "0:00:16"]

1. e4 {[%clk 0:03:00]}  c5 {[%clk 0:02:59]} 2. Nc3 {[%clk 0:03:01]}  d6 {[%clk 0:02:57]} 3. f4 {[%clk 0:03:01]}  g6 {[%clk 0:02:57]} 4. Nf3 {[%clk 0:03:01]}  Bg7 {[%clk 0:02:57]} 5. Bc4 {[%clk 0:03:02]}  Nc6 {[%clk 0:02:57]} 6. O-O {[%clk 0:03:02]}  e6 {[%clk 0:02:57]} 7. d3 {[%clk 0:03:03]}  Nge7 {[%clk 0:02:57]} 8. Qe1 {[%clk 0:03:04]}  O-O {[%clk 0:02:57]} 9. f5 {[%clk 0:03:04]}  gxf5 {[%clk 0:02:57]} 10. Qh4 {[%clk 0:03:04]}  Nd4 {[%clk 0:02:56]} 11. Bh6 {[%clk 0:02:51]}  Ng6 {[%clk 0:02:30]} 12. Qh5 {[%clk 0:02:50]}  b5 {[%clk 0:02:08]} 13. Bxg7 {[%clk 0:01:37]}  Kxg7 {[%clk 0:02:02]} 14. Nxd4 {[%clk 0:01:30]}  bxc4 {[%clk 0:01:47]} 15. Nde2 {[%clk 0:01:06]}  cxd3 {[%clk 0:01:45]} 16. cxd3 {[%clk 0:01:07]}  fxe4 {[%clk 0:01:25]} 17. Nxe4 {[%clk 0:01:03]}  f5 {[%clk 0:01:19]} 18. Ng5 {[%clk 0:00:55]}  h6 {[%clk 0:01:17]} 19. Nh3 {[%clk 0:00:22]}  Qf6 {[%clk 0:01:12]} 20. Nhf4 {[%clk 0:00:20]}  Qg5 {[%clk 0:01:04]} 21. Qf3 {[%clk 0:00:20]}  Rb8 {[%clk 0:01:00]} 22. Nxg6 {[%clk 0:00:20]}  Qxg6 {[%clk 0:00:59]} 23. Nf4 {[%clk 0:00:20]}  Qg5 {[%clk 0:00:54]} 24. b3 {[%clk 0:00:21]}  e5 {[%clk 0:00:52]} 25. Nd5 {[%clk 0:00:20]}  Bb7 {[%clk 0:00:51]} 26. Rae1 {[%clk 0:00:18]}  Kh7 {[%clk 0:00:29]} 27. a3 {[%clk 0:00:11]}  Rf7 {[%clk 0:00:22]} 28. b4 {[%clk 0:00:11]}  cxb4 {[%clk 0:00:20]} 29. axb4 {[%clk 0:00:12]}  Rbf8 {[%clk 0:00:20]} 30. Ra1 {[%clk 0:00:12]}  a6 {[%clk 0:00:19]} 31. Rac1 {[%clk 0:00:11]}  e4 {[%clk 0:00:19]} 32. dxe4 {[%clk 0:00:11]}  f4 {[%clk 0:00:19]} 33. Qd3 {[%clk 0:00:10]}  Rg7 {[%clk 0:00:17]} 34. Kh1 {[%clk 0:00:10]}  Qxg2# {[%clk 0:00:16]} 0-1


[Site "https://www.chess.com"]

[Event "Titled Tuesday Blitz August 17 2021"]
[White "Nitin, S."]
[Black "Prraneeth Vuppala"]
[WhiteFideId "5018277"]
[BlackFideId "46622373"]
[WhiteElo "2431"]
[BlackElo "1759"]
[Result "0-1"]
[Round "06"]
[TimeControl "180+1"]
[Date "2021.08.17"]
[WhiteClock "0:00:35"]
[BlackClock "0:00:11"]

1. Nf3 {[%clk 0:03:00]}  d5 {[%clk 0:02:58]} 2. g3 {[%clk 0:02:59]}  Nd7 {[%clk 0:02:56]} 3. Bg2 {[%clk 0:02:59]}  e5 {[%clk 0:02:56]} 4. O-O {[%clk 0:02:59]}  Ngf6 {[%clk 0:02:56]} 5. d3 {[%clk 0:02:59]}  Bc5 {[%clk 0:02:56]} 6. c3 {[%clk 0:02:58]}  O-O {[%clk 0:02:55]} 7. d4 {[%clk 0:02:58]}  Bd6 {[%clk 0:02:48]} 8. dxe5 {[%clk 0:02:57]}  Nxe5 {[%clk 0:02:48]} 9. Nbd2 {[%clk 0:02:56]}  c6 {[%clk 0:02:47]} 10. Nxe5 {[%clk 0:02:55]}  Bxe5 {[%clk 0:02:47]} 11. Nf3 {[%clk 0:02:56]}  Bd6 {[%clk 0:02:46]} 12. Bg5 {[%clk 0:02:55]}  h6 {[%clk 0:02:46]} 13. Bc1 {[%clk 0:02:51]}  Re8 {[%clk 0:02:40]} 14. Qc2 {[%clk 0:02:50]}  Bd7 {[%clk 0:02:33]} 15. Rd1 {[%clk 0:02:49]}  Qc8 {[%clk 0:02:32]} 16. c4 {[%clk 0:02:36]}  Bf5 {[%clk 0:02:21]} 17. Qb3 {[%clk 0:02:33]}  Bc5 {[%clk 0:01:57]} 18. Bd2 {[%clk 0:02:23]}  Rxe2 {[%clk 0:01:54]} 19. Be1 {[%clk 0:02:19]}  Ne4 {[%clk 0:01:46]} 20. Nd4 {[%clk 0:02:16]}  Rxe1+ {[%clk 0:01:43]} 21. Rxe1 {[%clk 0:02:15]}  Bxd4 {[%clk 0:01:43]} 22. Re2 {[%clk 0:02:10]}  Nxf2 {[%clk 0:01:30]} 23. Rxf2 {[%clk 0:02:08]}  Bxf2+ {[%clk 0:01:31]} 24. Kxf2 {[%clk 0:02:08]}  dxc4 {[%clk 0:01:32]} 25. Qxc4 {[%clk 0:02:08]}  Qe6 {[%clk 0:01:32]} 26. Qc3 {[%clk 0:02:08]}  Rd8 {[%clk 0:01:26]} 27. Re1 {[%clk 0:02:07]}  Qd6 {[%clk 0:01:25]} 28. Re2 {[%clk 0:01:49]}  Qd4+ {[%clk 0:01:18]} 29. Qxd4 {[%clk 0:01:49]}  Rxd4 {[%clk 0:01:18]} 30. a3 {[%clk 0:01:47]}  Be6 {[%clk 0:01:18]} 31. Ke3 {[%clk 0:01:46]}  Rd6 {[%clk 0:01:14]} 32. Be4 {[%clk 0:01:44]}  Kf8 {[%clk 0:01:14]} 33. h4 {[%clk 0:01:42]}  Ke7 {[%clk 0:01:13]} 34. Rf2 {[%clk 0:01:41]}  b6 {[%clk 0:01:09]} 35. Bc2 {[%clk 0:01:40]}  c5 {[%clk 0:01:09]} 36. b4 {[%clk 0:01:38]}  c4 {[%clk 0:01:07]} 37. Rf4 {[%clk 0:01:35]}  a5 {[%clk 0:01:03]} 38. Rf1 {[%clk 0:01:29]}  axb4 {[%clk 0:00:56]} 39. axb4 {[%clk 0:01:30]}  Rd5 {[%clk 0:00:55]} 40. Ra1 {[%clk 0:01:26]}  Rb5 {[%clk 0:00:52]} 41. Ra7+ {[%clk 0:01:24]}  Kd6 {[%clk 0:00:50]} 42. Ra4 {[%clk 0:01:22]}  Re5+ {[%clk 0:00:50]} 43. Kd4 {[%clk 0:01:21]}  Re2 {[%clk 0:00:45]} 44. Be4 {[%clk 0:01:20]}  f5 {[%clk 0:00:43]} 45. Ba8 {[%clk 0:01:17]}  Rd2+ {[%clk 0:00:41]} 46. Kc3 {[%clk 0:01:17]}  Rd3+ {[%clk 0:00:41]} 47. Kc2 {[%clk 0:01:18]}  Rxg3 {[%clk 0:00:41]} 48. Ra6 {[%clk 0:01:18]}  Kc7 {[%clk 0:00:35]} 49. Bh1 {[%clk 0:01:13]}  g5 {[%clk 0:00:32]} 50. Ra7+ {[%clk 0:01:11]}  Kd6 {[%clk 0:00:30]} 51. Ra6 {[%clk 0:01:05]}  gxh4 {[%clk 0:00:26]} 52. Rxb6+ {[%clk 0:01:05]}  Ke5 {[%clk 0:00:26]} 53. b5 {[%clk 0:01:00]}  h3 {[%clk 0:00:24]} 54. Rb7 {[%clk 0:00:57]}  Rg1 {[%clk 0:00:22]} 55. Bc6 {[%clk 0:00:57]}  h2 {[%clk 0:00:21]} 56. Re7 {[%clk 0:00:48]}  Kd6 {[%clk 0:00:20]} 57. b6 {[%clk 0:00:45]}  Kxc6 {[%clk 0:00:16]} 58. b7 {[%clk 0:00:45]}  Rb1 {[%clk 0:00:14]} 59. b8=Q {[%clk 0:00:37]}  Rxb8 {[%clk 0:00:13]} 60. Rxe6+ {[%clk 0:00:37]}  Kd5 {[%clk 0:00:13]} 61. Rxh6 {[%clk 0:00:38]}  f4 {[%clk 0:00:11]} 62. Rxh2 {[%clk 0:00:37]}  Ke4 {[%clk 0:00:11]} 63. Kc3 {[%clk 0:00:36]}  Rc8 {[%clk 0:00:10]} 64. Rh3 {[%clk 0:00:35]}  f3 {[%clk 0:00:09]} 65. Rh7 {[%clk 0:00:34]}  Ke3 {[%clk 0:00:09]} 66. Re7+ {[%clk 0:00:34]}  Kf2 {[%clk 0:00:10]} 67. Kd2 {[%clk 0:00:34]}  c3+ {[%clk 0:00:10]} 68. Kc2 {[%clk 0:00:34]}  Kg2 {[%clk 0:00:10]} 69. Rg7+ {[%clk 0:00:35]}  Kf1 {[%clk 0:00:10]} 70. Rf7 {[%clk 0:00:35]}  f2 {[%clk 0:00:10]} 71. Rg7 {[%clk 0:00:34]}  Rc5 {[%clk 0:00:10]} 72. Rf7 {[%clk 0:00:34]}  Ke2 {[%clk 0:00:10]} 73. Re7+ {[%clk 0:00:34]}  Kf3 {[%clk 0:00:11]} 74. Rf7+ {[%clk 0:00:35]}  Ke3 {[%clk 0:00:11]} 75. Re7+ {[%clk 0:00:35]}  Kf4 {[%clk 0:00:11]} 0-1


[Site "https://www.chess.com"]